Workbook

Sheet Table
B1: INPUT | H1: Output
M2: Additional Charge Rate
B3: Product | C3: Material | D3: Type | E3: Size | F3: Amount | G3: Destination Zip | H3: Weight | I3: Cubic Feet | J3: # of Pallet(s) | K3: Class | M3: West of the Mississippi: | N3: 0.17
A4: Item 1 | B4: Table | C4: Plywood | D4: PRT | E4: 1896 | F4: 20 | G4: 41018 | H4: 975 | I4: 0 | J4: 1 | K4: 70 | M4: East of the Mississippi: | N4: 0.12
A5: Item 2
A6: Item 3
A7: Item 4
A8: Item 5
A9: Item 6
A10: Item 7
A11: Item 8
A12: Item 9
A13: Item 10
B15: State | C15: KY | G15: Total Weight | H15: =SUM(H4:H13) -> 975
B16: City | C16: ERLANGER | G16: Total Cost | H16: 260.57
B17: Carrier | C17: YRC | G17: Final Total Cost | I17: 291.8384
B18: Class | C18: 70
B19: Ships From | C19: Orem

Sheet Dropdown Menu (hidden)
A1: Product
A3: Table
A4: Chair
A5: Cart
A6: Magnattach
A7: Staging
A8: Misc.
A9: Table | B9: Material
A11: ABS | B11: ABS
A12: Laminate | B12: Laminate
A13: Plywood | B13: Plywood
A14: Aluminum | B14: Aluminum
A15: Reveal | B15: Reveal
A16: Hagen | B16: Hagen
A17: Winchester | B17: Winchester
A18: ABS | B18: Laminate | C18: Plywood | D18: Aluminum | E18: Reveal | F18: Hagen | G18: Winchester
A20: RT | B20: PRTL | C20: PRT | D20: AART | E20: LRT | F20: HRT | G20: WRT
A21: CT | B21: PCTL | C21: PCT | D21: AACT | E21: LCV | F21: HCT | G21: WCT
A22: ST | B22: PSTL | C22: PST | E22: LFL
A23: HR | B23: PHRL | C23: PHR | E23: LST
A24: QR | B24: PQRL | C24: PQR | E24: LMP
E25: LHR
A26: RT | B26: CT | C26: ST | D26: HR | E26: QR | F26: PRTL | G26: PCTL | H26: PSTL | I26: PHRL | J26: PQRL | K26: PRT | L26: PCT | M26: PST | N26: PHR | O26: PQR | P26: AART | Q26: AACT | R26: LRT | S26: LCV | T26: LFL | U26: LST | V26: LHR | W26: HRT | X26: HCT | Y26: WRT | Z26: WCT
A28: 1860 | B28: 24 | C28: 3060 | D28: 60 | E28: 30 | F28: 1860 | G28: 30 | H28: 3060 | I28: 60 | J28: 30 | K28: 1860 | L28: 30 | M28: 3060 | N28: 60 | O28: 30 | P28: 1872 | Q28: 30 | R28: 1260 | S28: 3060 | T28: 2472 | U28: 1242 | V28: 60 | W28: 2424 | X28: 24 | Y28: 2424 | Z28: 24
A29: 1872 | B29: 30 | C29: 3672 | D29: 72 | E29: 36 | F29: 1872 | G29: 36 | K29: 1872 | L29: 36 | P29: 1896 | Q29: 36 | R29: 1272 | S29: 3072 | T29: 2496 | U29: 1260 | W29: 2430 | X29: 30 | Y29: 2430 | Z29: 30
A30: 1884 | B30: 36 | F30: 1896 | G30: 60 | K30: 1896 | L30: 48 | P30: 3072 | Q30: 60 | R30: 1296 | S30: 3096 | T30: 3072 | U30: 3060 | W30: 3030 | X30: 36 | Y30: 3030 | Z30: 36
A31: 1896 | B31: 42 | F31: 2460 | G31: 66 | K31: 2460 | L31: 60 | P31: 3096 | R31: 1860 | S31: 3672 | T31: 3096 | W31: 3042 | X31: 48 | Y31: 3042 | Z31: 48
A32: 2448 | B32: 48 | F32: 2472 | G32: 72 | K32: 2472 | L32: 66 | R32: 1872 | S32: 3696 | W32: 3048 | Y32: 3048
A33: 2460 | B33: 54 | F33: 2496 | K33: 2496 | L33: 72 | R33: 1896 | W33: 3060 | Y33: 3060
A34: 2472 | B34: 60 | F34: 3060 | K34: 3060 | R34: 2460 | W34: 3636 | Y34: 3636
A35: 2484 | B35: 66 | F35: 3072 | K35: 3072 | R35: 2472
A36: 2496 | B36: 72 | F36: 3096 | K36: 3096 | R36: 2496
A37: 3030 | R37: 3060
A38: 3048 | R38: 3072
A39: 3060 | R39: 3096
A40: 3072
A41: 3084
A42: 3096
A43: 3636
A44: 3672
A45: 3696
A47: Chair | B47: Folding | C47: Stacking | D47: Banquet | E47: Restaurant
A49: Folding | B49: DuraMax | C49: ADAPT | D49: Access (A3) | E49: Restaurant Bar
A50: Stacking | B50: Mesh One | C50: Chiavari | D50: AS 210 | E50: Restaurant Chair
A51: Banquet | B51: FlexLite | C51: MeshOne (Arms) | D51: Classic (C4)
A52: Restaurant | B52: One Series PRO | C52: MeshOne (No Arms) | D52: EK5
B53: SwiftSet (CHSS) | C53: Napoleon | D53: Encore
C54: SwiftSet (CSSK) | D54: Eon
C55: SwiftSet HD | D55: Essential
C56: Value Stack | D56: Essential II
C57: Warehouse Chair | D57: Grand
D58: Grand II
D59: Prestige
D60: Regency
D61: Royale
D62: Worship (WS19)
A71: Cart | B71: TableCart | C71: ChairCart
A73: TableCart | B73: Flat 3072 | C73: SFCART1
A74: ChairCart | B74: Flat 3096 | C74: XBCHSSBLK
B75: Flat 3672 | C75: Comfort Pan
B76: Flat 3696 | C76: 4 Wheel
B77: 3072 Double Cap | C77: 5 Wheel
B78: 3096 Double Cap | C78: PSCART
B79: Edge 18-60 | C79: RSCART
B80: Edge 18-72 | C80: CRTCOMFRTPSHBLK
B81: Edge 18-96 | C81: CRTCOMFRTSTKBLK
B82: RT Upright | C82: CRTTREE1
B83: RT Reveal Edge | C83: CRTTREE2
B84: Stacking 3072 | C84: CRTCHSSSK
B85: Stacking 3096 | C85: Swiftset Flat
B86: Stacking 3672 | C86: CRTCHSSFLUSBLK2
B87: Stacking 3696 | C87: MRCART
B88: CT 60 Stacking | C88: 2 Wheel
B89: CT 72 Stacking | C89: CRTHDTBLK2
B90: 42-72 Narrow
B91: 42-72 Wide
B92: 30-36SXBLK2
B93: 42-48LXBLK2
B94: CRTDLBLK4
B95: CRTDLBLK2
B96: CRTSERPEBLK2
A98: Magnattach | C98: MagnattachV1 | D98: MagnattachV2
A100: MagnattachV1 | C100: 8 x 12 | D100: 8 x 12
A101: MagnattachV2 | C101: 8 x 16 | D101: 8 x 16
C102: 12 x 12 | D102: 12 x 12
C103: 12 x 16 | D103: 12 x 16
C104: 12 x 20 | D104: 12 x 20
C105: 16 x 16 | D105: 16 x 16
C106: 16 x 20 | D106: 16 x 20
C107: 16 x 24 | D107: 16 x 24
C108: 16 x 28 | D108: 16 x 28
C109: 16 x 32 | D109: 16 x 32
C110: 20 x 20 | D110: 20 x 20
C111: 20 x 24 | D111: 20 x 24
C112: 20 x 28 | D112: 20 x 28
C113: 20 x 32 | D113: 20 x 32
C114: 24 x 24 | D114: 24 x 24
C115: 24 x 32 | D115: 24 x 32
C116: 24 x 36 | D116: 24 x 36
C117: 28 x 28 | D117: 28 x 28
C118: 28 x 32 | D118: 28 x 32
C119: 32 x 32 | D119: 32 x 32
C120: 32 x 36 | D120: 32 x 36
C121: 35 x 36 | D121: 35 x 36
C122: 35 x 40 | D122: 35 x 40
C123: 40 x 40 | D123: 40 x 40
A124: Staging | B124: Stage1624 | C124: Stage2432 | D124: Ramps | E124: Skirting | F124: StairsRails
A126: Stage1624 | B126: 4 x 8 | C126: 4 x 8 | D126: 24" Ramp | E126: 6' Skirt (16" - 24") | F126: Guardrail 4' x 42'
A127: Stage2432 | B127: 6 x 8 | C127: 6 x 8 | D127: 32" Ramp | E127: 8' skirt (16" - 24") | F127: Guardrail 6' x 42'
A128: Ramps | E128: 6' Skirt (24"-32") | F128: Guardrail 8' x 42'
A129: Skirting | E129: 8' Skirt (24"-32") | F129: Tilt & Tote 16"-24"
A130: StairsRails | F130: Tilt & Tote 24"-32"
A131: Misc.
A133: Chiavari Cushsions

Sheet Misc. (hidden)
A1: Misc. Dimensions & Weight
A2: Product Name | B2: Weight | C2: Max Per Pallet | D2: Width | E2: Length | F2: Location | G2: Pallet Weight | H2: Class
A3: Chiavari Cushsions | B3: 3 | C3: 250 | D3: 48 | E3: 48 | F3: SF | G3: 50 | H3: 125
A4: Casters | B4: 1 | F4: Orem | G4: 50 | H4: 125
A5: Ganging Clips | F5: Orem | G5: 50 | H5: 125

Sheet MagnattachV1 (hidden)
A1: Magnattach V1 Weight & Dimensions
A2: Product Name | B2: Number of Panels | C2: Number of Edges | D2: Weight | E2: Cart(s) Needed | F2: Width | G2: Length | H2: Max Pallet | I2: Location | J2: Pallet Weight | K2: Class
A3: 8 x 12 | B3: 6 | C3: 6 | D3: 541 | E3: 1 | F3: 52 | G3: 52 | H3: 25 | I3: Orem | J3: 75 | K3: 70
A4: 8 x 16 | B4: 8 | C4: 8 | D4: 675 | E4: 1 | F4: 52 | G4: 52 | H4: 25 | I4: Orem | J4: 75 | K4: 70
A5: 12 x 12 | B5: 9 | C5: 8 | D5: 733 | E5: 1 | F5: 52 | G5: 52 | H5: 25 | I5: Orem | J5: 75 | K5: 70
A6: 12 x 16 | B6: 12 | C6: 10 | D6: 925 | E6: 1 | F6: 52 | G6: 52 | H6: 25 | I6: Orem | J6: 75 | K6: 70
A7: 12 x 20 | B7: 15 | C7: 12 | D7: 1117 | E7: 1 | F7: 52 | G7: 52 | H7: 25 | I7: Orem | J7: 75 | K7: 70
A8: 16 x 16 | B8: 16 | C8: 12 | D8: 1175 | E8: 1 | F8: 52 | G8: 52 | H8: 25 | I8: Orem | J8: 75 | K8: 70
A9: 16 x 20 | B9: 20 | C9: 14 | D9: 1425 | E9: 1 | F9: 52 | G9: 52 | H9: 25 | I9: Orem | J9: 75 | K9: 70
A10: 16 x 24 | B10: 24 | C10: 16 | D10: 1770 | E10: 2 | F10: 52 | G10: 52 | H10: 25 | I10: Orem | J10: 75 | K10: 70
A11: 16 x 28 | B11: 28 | C11: 18 | D11: 2020 | E11: 2 | F11: 52 | G11: 52 | H11: 25 | I11: Orem | J11: 75 | K11: 70
A12: 16 x 32 | B12: 32 | C12: 20 | D12: 2270 | E12: 2 | F12: 52 | G12: 52 | H12: 25 | I12: Orem | J12: 75 | K12: 70
A13: 20 x 20 | B13: 25 | C13: 16 | D13: 1828 | E13: 2 | F13: 52 | G13: 52 | H13: 25 | I13: Orem | J13: 75 | K13: 70
A14: 20 x 24 | B14: 30 | C14: 18 | D14: 2136 | E14: 2 | F14: 52 | G14: 52 | H14: 25 | I14: Orem | J14: 75 | K14: 70
A15: 20 x 28 | B15: 35 | C15: 20 | D15: 2444 | E15: 2 | F15: 52 | G15: 52 | H15: 25 | I15: Orem | J15: 75 | K15: 70
A16: 20 x 32 | B16: 40 | C16: 22 | D16: 2752 | E16: 2 | F16: 52 | G16: 52 | H16: 25 | I16: Orem | J16: 75 | K16: 70
A17: 24 x 24 | B17: 36 | C17: 20 | D17: 2502 | E17: 2 | F17: 52 | G17: 52 | H17: 25 | I17: Orem | J17: 75 | K17: 70
A18: 24 x 32 | B18: 48 | C18: 24 | D18: 3329 | E18: 3 | F18: 52 | G18: 52 | H18: 25 | I18: Orem | J18: 75 | K18: 70
A19: 24 x 36 | B19: 54 | C19: 26 | D19: 3695 | E19: 3 | F19: 52 | G19: 52 | H19: 25 | I19: Orem | J19: 75 | K19: 70
A20: 28 x 28 | B20: 49 | C20: 24 | D20: 3387 | E20: 3 | F20: 52 | G20: 52 | H20: 25 | I20: Orem | J20: 75 | K20: 70
A21: 28 x 32 | B21: 56 | C21: 26 | D21: 3811 | E21: 3 | F21: 52 | G21: 52 | H21: 25 | I21: Orem | J21: 75 | K21: 70
A22: 32 x 32 | B22: 64 | C22: 28 | D22: 4388 | E22: 4 | F22: 52 | G22: 52 | H22: 25 | I22: Orem | J22: 75 | K22: 70
A23: 32 x 36 | B23: 72 | C23: 30 | D23: 4870 | E23: 4 | F23: 52 | G23: 52 | H23: 25 | I23: Orem | J23: 75 | K23: 70
A24: 35 x 36 | B24: 81 | C24: 32 | D24: 5505 | E24: 5 | F24: 52 | G24: 52 | H24: 25 | I24: Orem | J24: 75 | K24: 70
A25: 35 x 40 | B25: 90 | C25: 34 | D25: 6045 | E25: 5 | F25: 52 | G25: 52 | H25: 25 | I25: Orem | J25: 75 | K25: 70
A26: 40 x 40 | B26: 100 | C26: 36 | D26: 6643 | E26: 5 | F26: 52 | G26: 52 | H26: 25 | I26: Orem | J26: 75 | K26: 70

Sheet MagnattachV2 (hidden)
A1: Magnattach V2 Weight & Dimensions
A2: Product Name | B2: Number of Panels | C2: Number of Edges | D2: Weight | E2: Cart(s) Needed | F2: Width | G2: Length | H2: Max Pallet | I2: Location | J2: Pallet Weight | K2: Class
A3: 8 x 12 | B3: 6 | C3: 6 | D3: 352 | E3: 1 | F3: 52 | G3: 52 | H3: 25 | I3: Orem | J3: 75 | K3: 70
A4: 8 x 16 | B4: 8 | C4: 8 | D4: 458 | E4: 1 | F4: 52 | G4: 52 | H4: 25 | I4: Orem | J4: 75 | K4: 70
A5: 12 x 12 | B5: 9 | C5: 8 | D5: 505 | E5: 1 | F5: 52 | G5: 52 | H5: 25 | I5: Orem | J5: 75 | K5: 70
A6: 12 x 16 | B6: 12 | C6: 10 | D6: 655 | E6: 1 | F6: 52 | G6: 52 | H6: 25 | I6: Orem | J6: 75 | K6: 70
A7: 12 x 20 | B7: 15 | C7: 12 | D7: 807 | E7: 1 | F7: 52 | G7: 52 | H7: 25 | I7: Orem | J7: 75 | K7: 70
A8: 16 x 16 | B8: 16 | C8: 12 | D8: 853 | E8: 1 | F8: 52 | G8: 52 | H8: 25 | I8: Orem | J8: 75 | K8: 70
A9: 16 x 20 | B9: 20 | C9: 14 | D9: 1052 | E9: 1 | F9: 52 | G9: 52 | H9: 25 | I9: Orem | J9: 75 | K9: 70
A10: 16 x 24 | B10: 24 | C10: 16 | D10: 1446 | E10: 2 | F10: 52 | G10: 52 | H10: 25 | I10: Orem | J10: 75 | K10: 70
A11: 16 x 28 | B11: 28 | C11: 18 | D11: 1645 | E11: 2 | F11: 52 | G11: 52 | H11: 25 | I11: Orem | J11: 75 | K11: 70
A12: 16 x 32 | B12: 32 | C12: 20 | D12: 1743 | E12: 2 | F12: 52 | G12: 52 | H12: 25 | I12: Orem | J12: 75 | K12: 70
A13: 20 x 20 | B13: 25 | C13: 16 | D13: 1492 | E13: 2 | F13: 52 | G13: 52 | H13: 25 | I13: Orem | J13: 75 | K13: 70
A14: 20 x 24 | B14: 30 | C14: 18 | D14: 1737 | E14: 2 | F14: 52 | G14: 52 | H14: 25 | I14: Orem | J14: 75 | K14: 70
A15: 20 x 28 | B15: 35 | C15: 20 | D15: 1983 | E15: 2 | F15: 52 | G15: 52 | H15: 25 | I15: Orem | J15: 75 | K15: 70
A16: 20 x 32 | B16: 40 | C16: 22 | D16: 2224 | E16: 2 | F16: 52 | G16: 52 | H16: 25 | I16: Orem | J16: 75 | K16: 70
A17: 24 x 24 | B17: 36 | C17: 20 | D17: 2026 | E17: 2 | F17: 52 | G17: 52 | H17: 25 | I17: Orem | J17: 75 | K17: 70
A18: 24 x 32 | B18: 48 | C18: 24 | D18: 2711 | E18: 3 | F18: 52 | G18: 52 | H18: 25 | I18: Orem | J18: 75 | K18: 70
A19: 24 x 36 | B19: 54 | C19: 26 | D19: 3002 | E19: 3 | F19: 52 | G19: 52 | H19: 25 | I19: Orem | J19: 75 | K19: 70
A20: 28 x 28 | B20: 49 | C20: 24 | D20: 2763 | E20: 3 | F20: 52 | G20: 52 | H20: 25 | I20: Orem | J20: 75 | K20: 70
A21: 28 x 32 | B21: 56 | C21: 26 | D21: 3101 | E21: 3 | F21: 52 | G21: 52 | H21: 25 | I21: Orem | J21: 75 | K21: 70
A22: 32 x 32 | B22: 64 | C22: 28 | D22: 3682 | E22: 4 | F22: 52 | G22: 52 | H22: 25 | I22: Orem | J22: 75 | K22: 70
A23: 32 x 36 | B23: 72 | C23: 30 | D23: 4066 | E23: 4 | F23: 52 | G23: 52 | H23: 25 | I23: Orem | J23: 75 | K23: 70
A24: 35 x 36 | B24: 81 | C24: 32 | D24: 4693 | E24: 5 | F24: 52 | G24: 52 | H24: 25 | I24: Orem | J24: 75 | K24: 70
A25: 35 x 40 | B25: 90 | C25: 34 | D25: 5124 | E25: 5 | F25: 52 | G25: 52 | H25: 25 | I25: Orem | J25: 75 | K25: 70
A26: 40 x 40 | B26: 100 | C26: 36 | D26: 5602 | E26: 5 | F26: 52 | G26: 52 | H26: 25 | I26: Orem | J26: 75 | K26: 70
A28: 1 Panel | B28: 46.5 | C28: =46.5*0.27 -> 12.555 | D28: =B28+C28 -> 59.055
A29: Corner Set | B29: 27
A30: Cart | B30: 196
A31: 4 Edge | B31: 24
A32: 2 Edge | B32: 12.5

Sheet Staging (hidden)
A1: Staging Dimensions & Weight
A2: Product Category | B2: Product Name | C2: Weight | D2: Max Per Pallet | E2: Width | F2: Length | G2: Location | H2: Pallet Weight | I2: Class
A3: 16 - 24 Fold & Roll Riser | B3: 4 x 8 | C3: 254 | D3: 2 | G3: Michigan | H3: 75 | I3: 70
A4: 16 - 24 Fold & Roll Riser | B4: 6 x 8 | C4: 367 | D4: 2 | G4: Michigan | H4: 75 | I4: 70
A5: 24 - 32 Fold & Roll Riser | B5: 4 x 8 | C5: 273 | D5: 2 | G5: Michigan | H5: 75 | I5: 70
A6: 24 - 32 Fold & Roll Riser | B6: 6 x 8 | C6: 371 | D6: 2 | G6: Michigan | H6: 75 | I6: 70
A7: ADA Ramps | B7: 24" Ramp | C7: 1025 | D7: 1 | G7: Michigan | H7: 75 | I7: 70
A8: ADA Ramps | B8: 32" Ramp | C8: 1025 | D8: 1 | G8: Michigan | H8: 75 | I8: 70
A9: Skirting | B9: 6' Skirt (16" - 24") | C9: 3 | G9: Michigan | H9: 75 | I9: 70
A10: Skirting | B10: 8' skirt (16" - 24") | C10: 4 | G10: Michigan | H10: 75 | I10: 70
A11: Skirting | B11: 6' Skirt (24"-32") | C11: 3 | G11: Michigan | H11: 75 | I11: 70
A12: Skirting | B12: 8' Skirt (24"-32") | C12: 4 | G12: Michigan | H12: 75 | I12: 70
A13: Stairs and Rails | B13: Guardrail 4' x 42' | C13: 46 | G13: Michigan | H13: 75 | I13: 70
A14: Stairs and Rails | B14: Guardrail 6' x 42' | C14: 68 | G14: Michigan | H14: 75 | I14: 70
A15: Stairs and Rails | B15: Guardrail 8' x 42' | C15: 85 | G15: Michigan | H15: 75 | I15: 70
A16: Stairs and Rails | B16: Tilt & Tote 16"-24" | C16: 24 | G16: Michigan | H16: 75 | I16: 70
A17: Stairs and Rails | B17: Tilt & Tote 24"-32" | C17: 31 | G17: Michigan | H17: 75 | I17: 70

Sheet Banquet (hidden)
A1: Banquet Chairs Dimensions & Weight
A2: Product Name | B2: Weight | C2: Max Per Pallet | D2: Width | E2: Length | F2: Location | G2: Pallet Weight | H2: Class
A3: Access (A3) | B3: 13 | C3: 50 | D3: 58 | E3: 38 | F3: SF | G3: 50 | H3: 125
A4: AS 210 | B4: 11 | C4: 48 | D4: 58 | E4: 38 | F4: SF | G4: 50 | H4: 125
A5: Classic (C4) | B5: 15 | C5: 48 | D5: 58 | E5: 38 | F5: Orem | G5: 50 | H5: 125
A6: EK5 | B6: 16 | C6: 40 | D6: 75 | E6: 40 | F6: Orem | G6: 50 | H6: 125
A7: Encore | B7: 14 | C7: 40 | D7: 68 | E7: 46 | F7: Orem | G7: 50 | H7: 125
A8: Eon | B8: 15 | C8: 40 | D8: 68 | E8: 48 | F8: Orem | G8: 50 | H8: 125
A9: Essential | B9: 17 | C9: 48 | D9: 58 | E9: 38 | F9: SF | G9: 50 | H9: 125
A10: Essential II | B10: 14 | C10: 40 | D10: 58 | E10: 38 | F10: SF | G10: 50 | H10: 125
A11: Grand | B11: 13 | C11: 24 | D11: 84 | E11: 40 | F11: Orem | G11: 50 | H11: 125
A12: Grand II | B12: 16 | C12: 24 | D12: 84 | E12: 40 | F12: Orem | G12: 50 | H12: 125
A13: Prestige | B13: 18 | C13: 25 | D13: 48 | E13: 40 | F13: SF | G13: 50 | H13: 125
A14: Regency | B14: 18 | C14: 25 | D14: 48 | E14: 40 | F14: Orem | G14: 50 | H14: 125
A15: Royale | B15: 16 | C15: 25 | D15: 48 | E15: 40 | F15: SF | G15: 50 | H15: 125
A16: Worship (WS19) | B16: 16 | C16: 32 | D16: 72 | E16: 40 | F16: SF | G16: 50 | H16: 125

Sheet Folding (hidden)
A1: Folding Chairs Dimensions & Weight
A2: Product Name | B2: Weight | C2: Max Per Pallet | D2: Width | E2: Length | F2: Location | G2: Pallet Weight | H2: Class
A3: DuraMax | B3: 11 | C3: 60 | D3: 48 | E3: 35 | F3: SF | G3: 50 | H3: 125
A4: Mesh One | B4: 11 | C4: 24 | D4: 48 | E4: 40 | F4: Orem | G4: 50 | H4: 125
A5: FlexLite | B5: 10 | C5: 30 | D5: 48 | E5: 40 | F5: SF | G5: 50 | H5: 125
A6: One Series PRO | B6: 10 | C6: 24 | D6: 48 | E6: 40 | F6: Orem | G6: 50 | H6: 125
A7: SwiftSet (CHSS) | B7: 12 | C7: 42 | D7: 48 | E7: 40 | F7: Orem | G7: 50 | H7: 125

Sheet Stacking (hidden)
A1: Stacking Chairs Dimensions & Weight
A2: Product Name | B2: Weight | C2: Max Per Pallet | D2: Width | E2: Length | F2: Location | G2: Pallet Weight | H2: Class
A3: ADAPT | B3: 8 | C3: 32 | D3: 48 | E3: 40 | F3: SF | G3: 50 | H3: 125
A4: Chiavari | B4: 11 | C4: 28 | D4: 73 | E4: 40 | F4: SF | G4: 75 | H4: 250
A5: MeshOne (Arms) | B5: 15 | C5: 30 | D5: 84 | E5: 40 | F5: Orem | G5: 50 | H5: 125
A6: MeshOne (No Arms) | B6: 12 | C6: 30 | D6: 84 | E6: 40 | F6: Orem | G6: 50 | H6: 125
A7: Napoleon | B7: 7.5 | C7: 42 | D7: 73 | E7: 40 | F7: SF | G7: 50 | H7: 125
A8: SwiftSet (CSSK) | B8: 12 | C8: 60 | D8: 84 | E8: 40 | F8: Orem | G8: 50 | H8: 125
A9: SwiftSet HD | B9: 16 | C9: 42 | D9: 45 | E9: 28 | F9: Orem | G9: 50 | H9: 125
A10: Value Stack | B10: 14 | C10: 40 | D10: 68 | E10: 36 | F10: Orem | G10: 50 | H10: 125
A11: Warehouse Chair | B11: 11 | C11: 48 | D11: 40 | E11: 73 | F11: SF | G11: 50 | H11: 125

Sheet Restaurant (hidden)
A1: Restaurant Chairs Dimensions & Weight
A2: Product Name | B2: Weight | C2: Max Per Pallet | D2: Width | E2: Length | F2: Location | G2: Pallet Weight | H2: Class
A3: Restaurant Bar | B3: 31 | C3: 10 | D3: 48 | E3: 40 | F3: SF | G3: 50 | H3: 150
A4: Restaurant Chair | B4: 22 | C4: 20 | D4: 48 | E4: 40 | F4: SF | G4: 50 | H4: 150

Sheet ABS (hidden)
A1: ABS Table Dimensions & Weight
A2: Single Boxed | H2: Double Boxed | K2: Pallet Dimension | O2: Additional Info
A3: Type | B3: Size | C3: Width | D3: Length | E3: Height | F3: Cubic Ft. | G3: Weight | H3: Height | I3: Cubic Ft | J3: Weight | K3: Max per pallet | L3: Single/Double | M3: Width | N3: Length | O3: Location | P3: Pallet Weight | Q3: Class
A4: RT | B4: RT1860 | C4: 18 | D4: 60 | E4: 3 | F4: =(C4/12)*(D4/12)*(E4/12) -> 1.875 | G4: 350 | H4: 53.53009259 | I4: 1 | J4: 67 | K4: 50 | L4: 2 | M4: 74 | N4: 38 | O4: Orem | P4: 75 | Q4: 70
A5: RT | B5: RT1872 | C5: 18 | D5: 74 | E5: 3 | F5: =(C5/12)*(D5/12)*(E5/12) -> 2.3125 | G5: 37 | H5: 5 | I5: =(C5/12)*(D5/12)*(H5/12) -> 3.854166667 | J5: 70 | K5: 50 | L5: 2 | M5: 74 | N5: 38 | O5: Orem | P5: 75 | Q5: 70
A6: RT | B6: RT1884 | C6: 18 | D6: 95 | E6: 3 | F6: =(C6/12)*(D6/12)*(E6/12) -> 2.96875 | G6: 40 | H6: 5 | I6: 4.947916667 | J6: 76 | K6: 50 | L6: 2 | M6: 96 | N6: 31 | O6: Orem | P6: 75 | Q6: 70
A7: RT | B7: RT1896 | C7: 18 | D7: 97 | E7: 3 | F7: 3.03125 | G7: 45 | H7: 5.75 | I7: 5.809895833 | J7: 85 | K7: 50 | L7: 2 | M7: 98 | N7: 38 | O7: Orem | P7: 75 | Q7: 70
A8: RT | B8: RT2448 | C8: 24 | D8: 48.5 | E8: 3 | F8: 2.020833333 | G8: 44 | H8: 6.5 | I8: 4.378472222 | J8: 84 | K8: 20 | L8: 2 | M8: 48 | N8: 40 | O8: Orem | P8: 75 | Q8: 70
A9: RT | B9: RT2460 | C9: 24 | D9: 60.5 | E9: 3 | F9: 2.520833333 | G9: 43 | H9: 8 | I9: 6.722222222 | J9: 83 | K9: 16 | L9: 2 | M9: 73 | N9: 31 | O9: Orem | P9: 75 | Q9: 70
A10: RT | B10: RT2472 | C10: 24 | D10: 74 | E10: 3 | F10: 3.083333333 | G10: 45 | H10: 6.5 | I10: 6.680555556 | J10: 87 | K10: 25 | L10: 2 | M10: 73 | N10: 31 | O10: Orem | P10: 75 | Q10: 70
A11: RT | B11: RT2484 | C11: 24 | D11: 84.5 | E11: 3 | F11: 3.520833333 | G11: 50 | H11: 6.5 | I11: 7.628472222 | J11: 96 | K11: 25 | L11: 2 | M11: 96 | N11: 31 | O11: Orem | P11: 75 | Q11: 70
A12: RT | B12: RT2496 | C12: 24 | D12: 96 | E12: 3 | F12: 4 | G12: 53 | H12: 6 | I12: 8 | J12: 116 | K12: 25 | L12: 2 | M12: 96 | N12: 31 | O12: Orem | P12: 75 | Q12: 70
A13: RT | B13: RT3030 | G13: 30 | J13: 56 | K13: 12 | L13: 2 | M13: 48 | N13: 48 | O13: Orem | P13: 75 | Q13: 70
A14: RT | B14: RT3048 | C14: 30 | D14: 48.5 | E14: 3 | F14: 2.526041667 | G14: 42 | H14: 8 | I14: 6.736111111 | J14: 79 | K14: 18 | L14: 2 | M14: 73 | N14: 31 | O14: Orem | P14: 75 | Q14: 70
A15: RT | B15: RT3060 | C15: 30 | D15: 81.5 | E15: 3 | F15: 4.244791667 | G15: 47 | H15: 7.5 | I15: 10.61197917 | J15: 90 | K15: 18 | L15: 2 | M15: 73 | N15: 31 | O15: Orem | P15: 75 | Q15: 70
A16: RT | B16: RT3072 | C16: 30 | D16: 73.5 | E16: 3 | F16: 3.828125 | G16: 48 | H16: 6 | I16: 7.65625 | J16: 92 | K16: 25 | L16: 2 | M16: 73 | N16: 31 | O16: Orem | P16: 75 | Q16: 70
A17: RT | B17: RT3084 | C17: 30 | D17: 84.5 | E17: 3 | F17: =(C17/12)*(D17/12)*(E17/12) -> 4.401041667 | G17: 54 | H17: 6 | I17: 8.802083333 | J17: 103 | K17: 25 | L17: 2 | M17: 96 | N17: 31 | O17: Orem | P17: 75 | Q17: 70
A18: RT | B18: RT3096 | C18: 30 | D18: 96.5 | E18: 3 | F18: 5.026041667 | G18: 59 | H18: 6 | I18: 10.05208333 | J18: 113 | K18: 25 | L18: 2 | M18: 96 | N18: 31 | O18: Orem | P18: 75 | Q18: 70
A19: RT | B19: RT3636 | C19: 36.5 | D19: 36.5 | E19: 3 | F19: 2.312934028 | G19: 39 | H19: 7 | I19: 5.396846065 | J19: 76 | K19: 25 | L19: 2 | M19: 98 | N19: 38 | O19: Orem | P19: 75 | Q19: 70
A20: RT | B20: RT3672 | C20: 36.5 | D20: 73.5 | E20: 3 | F20: 4.657552083 | G20: 56 | H20: 6 | I20: 9.315104167 | J20: 105 | K20: 25 | L20: 2 | M20: 74 | N20: 38 | O20: Orem | P20: 75 | Q20: 70
A21: RT | B21: RT3696 | C21: 36 | D21: 97 | E21: 3 | F21: 6.0625 | G21: 68 | H21: 5.5 | I21: 11.11458333 | J21: 130 | K21: 20 | L21: 2 | M21: 98 | N21: 38 | O21: Orem | P21: 75 | Q21: 70
A22: CT | B22: CT24 | G22: 19 | J22: 37 | K22: 20 | L22: 2 | M22: 74 | N22: 38 | O22: Orem | P22: 75 | Q22: 70
A23: CT | B23: CT30 | C23: 37 | D23: 40 | E23: 5 | F23: 4.282407407 | G23: 28 | H23: 12.5 | I23: 10.70601852 | J23: 55 | K23: 20 | L23: 2 | M23: 74 | N23: 38 | O23: Orem | P23: 75 | Q23: 70
A24: CT | B24: CT36 | C24: 37 | D24: 40 | E24: 5 | F24: 4.282407407 | G24: 33 | H24: 12 | I24: 10.27777778 | J24: 65 | K24: 20 | L24: 2 | M24: 98 | N24: 38 | O24: Orem | P24: 75 | Q24: 70
A25: CT | B25: CT42 | F25: 0 | G25: 49 | J25: 95 | K25: 12 | L25: 2 | M25: 101 | N25: 48 | O25: Orem | P25: 75 | Q25: 70
A26: CT | B26: CT48 | C26: 48.5 | D26: 48.5 | E26: 5 | F26: 6.806278935 | G26: 46 | H26: 7 | I26: 9.528790509 | J26: 88 | K26: 20 | L26: 2 | M26: 49 | N26: 49 | O26: Orem | P26: 75 | Q26: 70
A27: CT | B27: CT54 | C27: 54.5 | D27: 54 | E27: 5 | F27: =(C27/12)*(D27/12)*(E27/12) -> 8.515625 | G27: 56 | H27: 6 | I27: 10.21875 | J27: 105 | K27: 16 | L27: 2 | M27: 49 | N27: 49 | O27: Orem | P27: 75 | Q27: 70
A28: CT | B28: CT60 | C28: 60.5 | D28: 60.5 | E28: 5 | F28: 10.59100116 | G28: 65 | H28: 6.5 | I28: 13.7683015 | J28: 124 | K28: 20 | L28: 2 | M28: 49 | N28: 49 | O28: Orem | P28: 75 | Q28: 70
A29: CT | B29: CT66 | C29: 67 | D29: 66.5 | E29: 4 | F29: 10.31365741 | G29: 76 | K29: 20 | L29: 1 | M29: 61 | N29: 61 | O29: Orem | P29: 75 | Q29: 70
A30: CT | B30: CT72 | C30: 72.5 | D30: 73 | E30: 3.5 | F30: 10.71976273 | G30: 86 | K30: 20 | L30: 1 | M30: 67 | N30: 67 | O30: Orem | P30: 75 | Q30: 70
A31: ST | B31: ST3060 | C31: 39 | D31: 87 | E31: 4.5 | F31: 8.8359375 | G31: 26 | K31: 15 | L31: 1 | M31: 86 | N31: 38 | O31: Orem | P31: 75 | Q31: 70
A32: ST | B32: ST3672 | C32: 45 | D32: 101 | E32: 4 | F32: 10.52083333 | G32: 74 | K32: 15 | L32: 1 | M32: 101 | N32: 46 | O32: Orem | P32: 75 | Q32: 70
A33: HR | B33: HR60 | C33: 30.5 | D33: 60.5 | E33: 4 | F33: 4.271412037 | G33: 36 | K33: 16 | L33: 1 | M33: 73 | N33: 31 | O33: Orem | P33: 75 | Q33: 70
A34: HR | B34: HR72 | C34: 36.5 | D34: 72.5 | E34: 4 | F34: 6.125578704 | G34: 44 | K34: 12 | L34: 1 | M34: 74 | N34: 38 | O34: Orem | P34: 75 | Q34: 70
A35: QR | B35: QR30 | G35: 25 | K35: 30 | L35: 1 | M35: 96 | N35: 30 | O35: Orem | P35: 75 | Q35: 70
A36: QR | B36: QR36 | G36: 28 | K36: 30 | L36: 1 | M36: 96 | N36: 30 | O36: Orem | P36: 75 | Q36: 70

Sheet Hagen (hidden)
A1: Hagen Table Dimensions & Weight
A2: Single Boxed | I2: Pallet Dimension | K2: Additional Info
A3: Type | B3: Size | C3: Width | D3: Length | E3: Height | F3: Cubic Ft. | G3: Weight | H3: Max Per Pallet | I3: Width | J3: Length | K3: Location | L3: Pallet Weight | M3: Class
A4: HRT | B4: HRT2424 | C4: 24.5 | D4: 24.5 | E4: 1.5 | F4: =(C4/12)*(D4/12)*(E4/12) -> 0.5210503472 | G4: 15 | H4: 20 | I4: 40 | J4: 48 | K4: Orem | L4: 75 | M4: 70
A5: HRT | B5: HRT2430 | C5: 24.5 | D5: 30.5 | E5: 1.5 | F5: =(C5/12)*(D5/12)*(E5/12) -> 0.6486545139 | G5: 18.5 | H5: 20 | I5: 40 | J5: 48 | K5: Orem | L5: 75 | M5: 70
A6: HRT | B6: HRT3030 | C6: 30.5 | D6: 30.5 | E6: 1.5 | F6: 0.8075086806 | G6: 23 | H6: 20 | I6: 40 | J6: 48 | K6: Orem | L6: 75 | M6: 70
A7: HRT | B7: HRT3042 | C7: 30.5 | D7: 42.5 | E7: 1.5 | F7: 1.125217014 | G7: 33 | H7: 20 | I7: 40 | J7: 48 | K7: Orem | L7: 75 | M7: 70
A8: HRT | B8: HRT3048 | C8: 30.5 | D8: 38.5 | E8: 1.5 | F8: 1.019314236 | G8: 37 | H8: 20 | I8: 40 | J8: 48 | K8: Orem | L8: 75 | M8: 70
A9: HRT | B9: HRT3060 | C9: 30.5 | D9: 60.5 | E9: 1.5 | F9: 1.601779514 | G9: 47.5 | H9: 20 | I9: 40 | J9: 48 | K9: Orem | L9: 75 | M9: 70
A10: HRT | B10: HRT3636 | C10: 36.5 | D10: 36.5 | E10: 1.5 | F10: 1.156467014 | G10: 33 | H10: 20 | I10: 40 | J10: 48 | K10: Orem | L10: 75 | M10: 70
A11: HCT | B11: HCT24 | C11: 24.5 | D11: 24.5 | E11: 1.5 | F11: 0.5210503472 | G11: 12 | H11: 20 | I11: 40 | J11: 48 | K11: Orem | L11: 75 | M11: 70
A12: HCT | B12: HCT30 | C12: 30.5 | D12: 30.5 | E12: 1.5 | F12: 0.8075086806 | G12: 19 | H12: 20 | I12: 40 | J12: 48 | K12: Orem | L12: 75 | M12: 70
A13: HCT | B13: HCT36 | C13: 36.5 | D13: 36.5 | E13: 1.5 | F13: 1.156467014 | G13: 26.5 | H13: 20 | I13: 40 | J13: 48 | K13: Orem | L13: 75 | M13: 70
A14: HCT | B14: HCT48 | C14: 48.5 | D14: 48.5 | E14: 1.5 | F14: 2.041883681 | G14: 47.5 | H14: 20 | I14: 40 | J14: 48 | K14: Orem | L14: 75 | M14: 70

Sheet Winchester (hidden)
A1: Winchester Table Dimensions & Weight
A2: Single Boxed | I2: Pallet Dimension | K2: Additional Info
A3: Type | B3: Size | C3: Width | D3: Length | E3: Height | F3: Cubic Ft. | G3: Weight | H3: Max Per Pallet | I3: Width | J3: Length | K3: Location | L3: Pallet Weight | M3: Class
A4: WRT | B4: WRT2424 | C4: 24.5 | D4: 24.5 | E4: 1.5 | F4: =(C4/12)*(D4/12)*(E4/12) -> 0.5210503472 | G4: 19 | H4: 20 | I4: 40 | J4: 48 | K4: Orem | L4: 75 | M4: 70
A5: WRT | B5: WRT2430 | C5: 24.5 | D5: 30.5 | E5: 1.5 | F5: =(C5/12)*(D5/12)*(E5/12) -> 0.6486545139 | G5: 23 | H5: 20 | I5: 40 | J5: 48 | K5: Orem | L5: 75 | M5: 70
A6: WRT | B6: WRT3030 | C6: 30.5 | D6: 30.5 | E6: 1.5 | F6: 0.8075086806 | G6: 27.5 | H6: 20 | I6: 40 | J6: 48 | K6: Orem | L6: 75 | M6: 70
A7: WRT | B7: WRT3042 | C7: 30.5 | D7: 42.5 | E7: 1.5 | F7: 1.125217014 | G7: 38 | H7: 20 | I7: 40 | J7: 48 | K7: Orem | L7: 75 | M7: 70
A8: WRT | B8: WRT3048 | C8: 30.5 | D8: 38.5 | E8: 1.5 | F8: 1.019314236 | G8: 45 | H8: 20 | I8: 40 | J8: 48 | K8: Orem | L8: 75 | M8: 70
A9: WRT | B9: WRT3060 | C9: 30.5 | D9: 60.5 | E9: 1.5 | F9: 1.601779514 | G9: 59 | H9: 20 | I9: 40 | J9: 48 | K9: Orem | L9: 75 | M9: 70
A10: WRT | B10: WRT3636 | C10: 36.5 | D10: 36.5 | E10: 1.5 | F10: 1.156467014 | G10: 38 | H10: 20 | I10: 40 | J10: 48 | K10: Orem | L10: 75 | M10: 70
A11: WCT | B11: WCT24 | C11: 24.5 | D11: 24.5 | E11: 1.5 | F11: 0.5210503472 | G11: 18 | H11: 20 | I11: 40 | J11: 48 | K11: Orem | L11: 75 | M11: 70
A12: WCT | B12: WCT30 | C12: 30.5 | D12: 30.5 | E12: 1.5 | F12: 0.8075086806 | G12: 22 | H12: 20 | I12: 40 | J12: 48 | K12: Orem | L12: 75 | M12: 70
A13: WCT | B13: WCT36 | C13: 36.5 | D13: 36.5 | E13: 1.5 | F13: 1.156467014 | G13: 33 | H13: 20 | I13: 40 | J13: 48 | K13: Orem | L13: 75 | M13: 70
A14: WCT | B14: WCT48 | C14: 48.5 | D14: 48.5 | E14: 1.5 | F14: 2.041883681 | G14: 60 | H14: 20 | I14: 40 | J14: 48 | K14: Orem | L14: 75 | M14: 70

Sheet Laminate (hidden)
A1: Laminate Table Dimensions & Weight
A2: Single Boxed | I2: Pallet Dimension | K2: Additional info
A3: Type | B3: Size | C3: Width | D3: Length | E3: Height | F3: Cubic Ft. | G3: Weight | H3: Max Per Pallet | I3: Width | J3: Length | K3: Location | L3: Pallet Weight | M3: Class
A4: PRTL | B4: PRTL1860 | C4: 18.5 | D4: 60.5 | E4: 3 | F4: =(C4/12)*(D4/12)*(E4/12) -> 1.943142361 | G4: 38 | H4: 20 | I4: 74 | J4: 38 | K4: Orem | L4: 75 | M4: 70
A5: PRTL | B5: PRTL1872 | C5: 18 | D5: 72.5 | E5: 3.5 | F5: 2.643229167 | G5: 40 | H5: 20 | I5: 74 | J5: 38 | K5: Orem | L5: 75 | M5: 70
A6: PRTL | B6: PRTL1896 | C6: 18.5 | D6: 90.5 | E6: 3 | F6: 2.906684028 | G6: 45 | H6: 20 | I6: 96 | J6: 31 | K6: Orem | L6: 75 | M6: 70
A7: PRTL | B7: PRTL2460 | F7: 0 | G7: 42 | H7: 10 | I7: 73 | J7: 31 | K7: Orem | L7: 75 | M7: 70
A8: PRTL | B8: PRTL2472 | F8: 0 | G8: 48 | H8: 10 | I8: 73 | J8: 31 | K8: Orem | L8: 75 | M8: 70
A9: PRTL | B9: PRTL2496 | F9: 0 | G9: 59 | H9: 10 | I9: 96 | J9: 31 | K9: Orem | L9: 75 | M9: 70
A10: PRTL | B10: PRTL3060 | C10: 30.5 | D10: 60.5 | E10: 4.5 | F10: 4.805338542 | G10: 48 | H10: 10 | I10: 73 | J10: 31 | K10: Orem | L10: 75 | M10: 70
A11: PRTL | B11: PRTL3072 | C11: 31 | D11: 73 | E11: 3 | F11: 3.928819444 | G11: 54 | H11: 10 | I11: 96 | J11: 31 | K11: Orem | L11: 75 | M11: 70
A12: PRTL | B12: PRTL3096 | C12: 30.5 | D12: 96.5 | E12: 3.5 | F12: 5.961443866 | G12: 65 | H12: 10 | I12: 96 | J12: 31 | K12: Orem | L12: 75 | M12: 70
A13: PCTL | B13: PCTL30 | F13: 0 | G13: 24 | H13: 16 | I13: 73 | J13: 38 | K13: Orem | L13: 75 | M13: 70
A14: PCTL | B14: PCTL36 | F14: 0 | G14: 27 | H14: 16 | I14: 98 | J14: 38 | K14: Orem | L14: 75 | M14: 70
A15: PCTL | B15: PCTL60 | C15: 60.5 | D15: 60.5 | E15: 4 | F15: 8.472800926 | G15: 73 | H15: 15 | I15: 61 | J15: 61 | K15: Orem | L15: 75 | M15: 70
A16: PCTL | B16: PCTL66 | F16: 0 | G16: 77 | H16: 15 | I16: 67 | J16: 67 | K16: Orem | L16: 75 | M16: 70
A17: PCTL | B17: PCTL72 | F17: 0 | G17: 89 | H17: 15 | I17: 73 | J17: 73 | K17: Orem | L17: 75 | M17: 70
A18: PQRL | B18: PQRL30 | F18: 0 | G18: 27 | H18: 16 | I18: 48 | J18: 40 | K18: Orem | L18: 75 | M18: 70
A19: PHRL | B19: PHRL60 | F19: 0 | G19: 41 | H19: 10 | I19: 73 | J19: 31 | K19: Orem | L19: 75 | M19: 70
A20: PSTL | B20: PSTL3060 | F20: 0 | G20: 55 | H20: 10 | I20: 86 | J20: 38 | K20: Orem | L20: 75 | M20: 70

Sheet Plywood (hidden)
A1: Plywood Table Dimensions & Weight
A2: Single Boxed | I2: Pallet Dimension | K2: Pallet Dimension
A3: Type | B3: Size | C3: Width | D3: Length | E3: Height | F3: Cubic Ft. | G3: Weight | H3: Max Per Pallet | I3: Width | J3: Length | K3: Location | L3: Pallet Weight | M3: Class
A4: PRT | B4: PRT1860 | C4: 18.5 | D4: 60.5 | E4: 3 | F4: =(C4/12)*(D4/12)*(E4/12) -> 1.943142361 | G4: 36 | H4: 20 | I4: 74 | J4: 38 | K4: Orem | L4: 75 | M4: 70
A5: PRT | B5: PRT1872 | C5: 18.5 | D5: 73 | E5: 3 | F5: 2.344618056 | G5: 38 | H5: 20 | I5: 74 | J5: 38 | K5: Orem | L5: 75 | M5: 70
A6: PRT | B6: PRT1896 | F6: 0 | G6: 45 | H6: 20 | I6: 96 | J6: 31 | K6: Orem | L6: 75 | M6: 70
A7: PRT | B7: PRT2460 | F7: 0 | G7: 43 | H7: 10 | I7: 73 | J7: 31 | K7: Orem | L7: 75 | M7: 70
A8: PRT | B8: PRT2472 | F8: 0 | G8: 47 | H8: 10 | I8: 73 | J8: 31 | K8: Orem | L8: 75 | M8: 70
A9: PRT | B9: PRT2496 | F9: 0 | G9: 56 | H9: 10 | I9: 96 | J9: 31 | K9: Orem | L9: 75 | M9: 70
A10: PRT | B10: PRT3060 | C10: 30.5 | D10: 61.5 | E10: 4.5 | F10: 4.884765625 | G10: 45 | H10: 10 | I10: 73 | J10: 31 | K10: Orem | L10: 75 | M10: 70
A11: PRT | B11: PRT3072 | C11: 31 | D11: 73 | E11: 3 | F11: 3.928819444 | G11: 51 | H11: 10 | I11: 96 | J11: 31 | K11: Orem | L11: 75 | M11: 70
A12: PRT | B12: PRT3096 | C12: 30.5 | D12: 96.5 | E12: 3.5 | F12: 5.961443866 | G12: 62 | H12: 10 | I12: 96 | J12: 31 | K12: Orem | L12: 75 | M12: 70
A13: PCT | B13: PCT30 | C13: 37 | D13: 40.5 | E13: 5.5 | F13: 4.76953125 | G13: 27 | H13: 16 | I13: 48 | J13: 48 | K13: Orem | L13: 75 | M13: 70
A14: PCT | B14: PCT36 | C14: 37 | D14: 40.5 | E14: 5.5 | F14: 4.76953125 | G14: 34 | H14: 16 | I14: 73 | J14: 31 | K14: Orem | L14: 75 | M14: 70
A15: PCT | B15: PCT48 | C15: 48.5 | D15: 48 | E15: 4 | F15: 5.388888889 | G15: 43 | H15: 10 | I15: 49 | J15: 49 | K15: Orem | L15: 75 | M15: 70
A16: PCT | B16: PCT60 | C16: 60.5 | D16: 60.5 | E16: 3.5 | F16: 7.41370081 | G16: 73 | H16: 15 | I16: 61 | J16: 61 | K16: Orem | L16: 75 | M16: 70
A17: PCT | B17: PCT66 | F17: 0 | G17: 75 | H17: 15 | I17: 67 | J17: 67 | K17: Orem | L17: 75 | M17: 70
A18: PCT | B18: PCT72 | C18: 72.5 | D18: 73 | E18: 4 | F18: 12.25115741 | G18: 82 | H18: 15 | I18: 73 | J18: 73 | K18: Orem | L18: 75 | M18: 70
A19: PQR | B19: PQR30 | F19: 0 | G19: 25 | H19: 16 | I19: 48 | J19: 40 | K19: Orem | L19: 75 | M19: 70
A20: PHR | B20: PHR60 | F20: 0 | G20: 38 | H20: 10 | I20: 72 | J20: 30 | K20: Orem | L20: 75 | M20: 70
A21: PST | B21: PST3060 | F21: 0 | G21: 53 | H21: 10 | I21: 84 | J21: 40 | K21: Orem | L21: 75 | M21: 70

Sheet Aluminum (hidden)
A1: Aluminum Table Dimensions & Weight
A2: Single Boxed | I2: Pallet Dimension | K2: Additional Info
A3: Type | B3: Size | C3: Width | D3: Length | E3: Height | F3: Cubic Ft. | G3: Weight | H3: Max Per Pallet | I3: Width | J3: Length | K3: Locaiton | L3: Pallet Weight | M3: Class
A4: AART | B4: AART1872 | C4: 21.5 | D4: 74.5 | E4: 3 | F4: =(C4/12)*(D4/12)*(E4/12) -> 2.780815972 | G4: 30 | H4: 20 | I4: 73 | J4: 31 | K4: Orem | L4: 75 | M4: 70
A5: AART | B5: AART1896 | F5: 0 | G5: 33 | H5: 20 | I5: 96 | J5: 31 | K5: Orem | L5: 75 | M5: 70
A6: AART | B6: AART3072 | C6: 33 | D6: 74.5 | E6: 3 | F6: 4.268229167 | G6: 40 | H6: 10 | I6: 73 | J6: 31 | K6: Orem | L6: 75 | M6: 70
A7: AART | B7: AART3096 | F7: 0 | G7: 49 | H7: 10 | I7: 96 | J7: 31 | K7: Orem | L7: 75 | M7: 70
A8: AACT | B8: AACT30 | C8: 37 | D8: 40.5 | E8: 12 | F8: 10.40625 | G8: 25 | H8: 16 | I8: 74 | J8: 38 | K8: Orem | L8: 75 | M8: 70
A9: AACT | B9: AACT36 | F9: 0 | G9: 30 | H9: 16 | I9: 74 | J9: 38 | K9: Orem | L9: 75 | M9: 70
A10: AACT | B10: AACT60 | C10: 61 | D10: 62 | E10: 4 | F10: 8.75462963 | G10: 48 | H10: 10 | I10: 61 | J10: 61 | K10: Orem | L10: 75 | M10: 70

Sheet Reveal (hidden)
A1: Reveal Table Dimensions & Weight
A2: Single Boxed | I2: Pallet Dimension | K2: Pallet Dimension
A3: Type | B3: Size | C3: Width | D3: Length | E3: Height | F3: Cubic Ft. | G3: Weight | H3: Max Per Pallet | I3: Width | J3: Length | K3: Location | L3: Pallet Weight | M3: Class
A4: LCV | B4: LCV3060 | F4: =(C4/12)*(D4/12)*(E4/12) -> 0 | G4: 66 | H4: 10 | I4: 74 | J4: 38 | K4: Orem | L4: 75 | M4: 70
A5: LCV | B5: LCV3072 | C5: 33.5 | D5: 74.5 | E5: 4 | F5: 5.777199074 | G5: 73 | H5: 10 | I5: 74 | J5: 38 | K5: Orem | L5: 75 | M5: 70
A6: LCV | B6: LCV3096 | C6: 33 | D6: 98 | E6: 3.5 | F6: 6.550347222 | G6: 92 | H6: 10 | I6: 98 | J6: 38 | K6: Orem | L6: 75 | M6: 70
A7: LCV | B7: LCV3672 | C7: 39 | D7: 75 | E7: 4 | F7: 6.770833333 | G7: 81 | H7: 10 | I7: 74 | J7: 38 | K7: Orem | L7: 75 | M7: 70
A8: LCV | B8: LCV3696 | F8: 0 | G8: 102 | H8: 10 | I8: 98 | J8: 38 | K8: Orem | L8: 75 | M8: 70
A9: LFL | B9: LFL2472 | C9: 27.5 | D9: 74.5 | E9: 6 | F9: 7.113715278 | G9: 86 | H9: 8 | I9: 73 | J9: 31 | K9: Orem | L9: 75 | M9: 70
A10: LFL | B10: LFL2496 | F10: 0 | G10: 90 | H10: 8 | I10: 96 | J10: 38 | K10: Orem | L10: 75 | M10: 70
A11: LFL | B11: LFL3072 | C11: 34 | D11: 75.5 | E11: 6 | F11: 8.913194444 | G11: 92 | H11: 8 | I11: 74 | J11: 38 | K11: Orem | L11: 75 | M11: 70
A12: LFL | B12: LFL3096 | C12: 34 | D12: 99 | E12: 6 | F12: 11.6875 | G12: 113 | H12: 8 | I12: 98 | J12: 38 | K12: Orem | L12: 75 | M12: 70
A13: LRT | B13: LRT1260 | G13: 23 | H13: 50 | K13: Orem | L13: 75 | M13: 70
A14: LRT | B14: LRT1272 | G14: 28 | H14: 50 | K14: Orem | L14: 75 | M14: 70
A15: LRT | B15: LRT1296 | G15: 33 | H15: 50 | K15: Orem | L15: 75 | M15: 70
A16: LRT | B16: LRT1860 | F16: 0 | G16: 36 | H16: 20 | I16: 74 | J16: 38 | K16: Orem | L16: 75 | M16: 70
A17: LRT | B17: LRT1872 | C17: 21 | D17: 74.5 | E17: 3 | F17: 2.716145833 | G17: 41 | H17: 20 | I17: 98 | J17: 38 | K17: Orem | L17: 75 | M17: 70
A18: LRT | B18: LRT1896 | C18: 21 | D18: 98.5 | E18: 3 | F18: 3.591145833 | G18: 53 | H18: 10 | I18: 98 | J18: 38 | K18: Orem | L18: 75 | M18: 70
A19: LRT | B19: LRT2460 | F19: 0 | G19: 50 | H19: 10 | I19: 74 | J19: 38 | K19: Orem | L19: 75 | M19: 70
A20: LRT | B20: LRT2472 | C20: 27 | D20: 75 | E20: 4 | F20: 4.6875 | G20: 48 | H20: 10 | I20: 73 | J20: 31 | K20: Orem | L20: 75 | M20: 70
A21: LRT | B21: LRT2496 | F21: 0 | G21: 60 | H21: 10 | I21: 98 | J21: 38 | K21: Orem | L21: 75 | M21: 70
A22: LRT | B22: LRT3060 | C22: 32 | D22: 61.5 | E22: 4 | F22: 4.555555556 | G22: 50 | H22: 10 | I22: 73 | J22: 31 | K22: Orem | L22: 75 | M22: 70
A23: LRT | B23: LRT3072 | C23: 33 | D23: 74.5 | E23: 3 | F23: 4.268229167 | G23: 61 | H23: 10 | I23: 74 | J23: 38 | K23: Orem | L23: 75 | M23: 70
A24: LRT | B24: LRT3096 | C24: 33 | D24: 98.5 | E24: 3.5 | F24: 6.583767361 | G24: 87 | H24: 10 | I24: 96 | J24: 31 | K24: Orem | L24: 75 | M24: 70
A25: LST | B25: LST1242 | G25: 30 | H25: 50 | K25: Orem | L25: 75 | M25: 70
A26: LST | B26: LST1260 | G26: 33 | H26: 50 | K26: Orem | L26: 75 | M26: 70
A27: LST | B27: LST3060 | C27: 41 | D27: 86 | E27: 5 | F27: 10.2025463 | G27: 71 | H27: 10 | I27: 86 | J27: 40 | K27: Orem | L27: 75 | M27: 70
A28: LHR | B28: LHR60 | C28: 30.5 | D28: 61.5 | E28: 4 | F28: 4.342013889 | G28: 42 | H28: 10 | I28: 73 | J28: 31 | K28: Orem | L28: 75 | M28: 70

Sheet TableCart (hidden)
A1: Table Cart Dimensions & Weight
A2: Single Boxed | H2: Pallet Dimension | J2: Additional Info
A3: Type | B3: Width | C3: Length | D3: Height | E3: Cubic Ft. | F3: Weight | G3: Max Per Pallet | H3: Width | I3: Length | J3: Location | K3: Pallet Weight | L3: Class
A4: Flat 3072 | B4: 31 | C4: 74.5 | D4: 8 | E4: =(B4/12)*(C4/12)*(D4/12) -> 10.69212963 | F4: 58 | G4: 4 | H4: 1 | I4: 38 | J4: Orem | K4: 75 | L4: 70
A5: Flat 3096 | B5: 31 | C5: 98.5 | D5: 8 | E5: =(B5/12)*(C5/12)*(D5/12) -> 14.13657407 | F5: 68 | G5: 4 | H5: 98 | I5: 38 | J5: Orem | K5: 75 | L5: 70
A6: Flat 3672 | E6: 0 | F6: 64 | G6: 4 | H6: 72 | I6: 36 | J6: Orem | K6: 75 | L6: 70
A7: Flat 3696 | E7: 0 | F7: 73 | G7: 4 | H7: 96 | I7: 36 | J7: Orem | K7: 75 | L7: 70
A8: 3072 Double Cap | B8: 38 | C8: 77 | D8: 8 | E8: 13.5462963 | F8: 84 | G8: 4 | H8: 74 | I8: 38 | J8: Orem | K8: 75 | L8: 70
A9: 3096 Double Cap | B9: 38 | C9: 98.5 | D9: 8.5 | E9: 18.41174769 | F9: 104 | G9: 4 | H9: 98 | I9: 38 | J9: Orem | K9: 75 | L9: 70
A10: Edge 18-60 | E10: 0 | F10: 72 | G10: 5 | H10: 72 | I10: 36 | J10: Orem | K10: 75 | L10: 70
A11: Edge 18-72 | B11: 36.5 | C11: 77 | D11: 8.5 | E11: 13.82479745 | F11: 83 | G11: 5 | H11: 74 | I11: 38 | J11: Orem | K11: 75 | L11: 70
A12: Edge 18-96 | B12: 38 | C12: 98.5 | D12: 8.5 | E12: 18.41174769 | F12: 94 | G12: 5 | H12: 98 | I12: 38 | J12: Orem | K12: 75 | L12: 70
A13: RT Upright | E13: 0 | F13: 80 | G13: 0 | H13: 0 | I13: 0 | J13: Orem | K13: 75 | L13: 70
A14: RT Reveal Edge | B14: 48 | C14: 74.5 | D14: 34 | E14: 70.36111111 | F14: 85 | G14: 2 | H14: 73 | I14: 47 | J14: Orem | K14: 75 | L14: 70 | M14: Double check the edge cart | O14: it was 160 but I changed it to 85 | R14: Includes pallet
A15: Stacking 3072 | E15: 0 | F15: 240 | G15: 2 | H15: 98 | I15: 38 | J15: Orem | K15: 75 | L15: 70 | M15: includes pallet?
A16: Stacking 3096 | E16: 0 | F16: 250 | G16: 2 | H16: 98 | I16: 38 | J16: Orem | K16: 75 | L16: 70 | M16: includes pallet?
A17: Stacking 3672 | E17: 0 | F17: 245 | G17: 2 | H17: 72 | I17: 36 | J17: Orem | K17: 75 | L17: 70 | M17: includes pallet?
A18: Stacking 3696 | E18: 0 | F18: 255 | G18: 2 | H18: 96 | I18: 36 | J18: Orem | K18: 75 | L18: 70 | M18: includes pallet?
A19: CT 60 Stacking | E19: 0 | F19: 250 | G19: 4 | H19: 96 | I19: 36 | J19: Orem | K19: 75 | L19: 70 | M19: includes pallet?
A20: CT 72 Stacking | E20: 0 | F20: 255 | G20: 4 | H20: 61 | I20: 61 | J20: Orem | K20: 75 | L20: 70 | M20: includes pallet?
A21: 42-72 Narrow | B21: 50.5 | C21: 61 | D21: 12.5 | E21: 22.28370949 | F21: 102 | G21: 5 | H21: 61 | I21: 61 | J21: Orem | K21: 75 | L21: 70
A22: 42-72 Wide | B22: 50.5 | C22: 61 | D22: 12.5 | E22: 22.28370949 | F22: 127 | G22: 5 | H22: 61 | I22: 61 | J22: Orem | K22: 75 | L22: 70
A23: 30-36SXBLK2 | B23: 37 | C23: 40.5 | D23: 12 | E23: 10.40625 | F23: 74 | G23: 5 | H23: 74 | I23: 38 | J23: Orem | K23: 75 | L23: 70
A24: 42-48LXBLK2 | E24: 0 | F24: 80 | G24: 5 | H24: 72 | I24: 36 | J24: Orem | K24: 75 | L24: 70
A25: CRTDLBLK4 | B25: 38 | C25: 76 | D25: 9 | E25: 15.04166667 | F25: 107 | G25: 5 | H25: 86 | I25: 40 | J25: Orem | K25: 75 | L25: 70
A26: CRTDLBLK2 | E26: 0 | F26: 135 | G26: 2 | H26: 96 | I26: 36 | J26: Orem | K26: 75 | L26: 70 | M26: includes pallet
A27: CRTSERPEBLK2 | E27: 0 | F27: 80 | G27: 4 | H27: 96 | I27: 36 | J27: Orem | K27: 75 | L27: 70

Sheet ChairCart (hidden)
A1: Chair Cart Dimensions & Weight
A2: Single Boxed | H2: Pallet Dimension
A3: Type | B3: Width | C3: Length | D3: Height | E3: Cubic Ft. | F3: Weight | G3: Max Per Pallet | H3: Width | I3: Length | J3: Location | K3: Pallet Weight | L3: Class
A4: SFCART1 | E4: =(B4/12)*(C4/12)*(D4/12) -> 0 | F4: 56 | G4: 5 | H4: 48 | I4: 40 | J4: Orem | K4: 75 | L4: 70
A5: XBCHSSBLK | E5: 0 | F5: 105 | G5: 2 | H5: 96 | I5: 36 | J5: Orem | K5: 75 | L5: 70 | M5: includes pallet?
A6: Comfort Pan | E6: 0 | F6: 31 | G6: 0 | H6: 0 | I6: 0 | J6: Orem | K6: 75 | L6: 70
A7: 4 Wheel | E7: 0 | F7: 31 | G7: 0 | H7: 0 | I7: 0 | J7: Orem | K7: 75 | L7: 70
A8: 5 Wheel | E8: 0 | F8: 30 | G8: 0 | H8: 0 | I8: 0 | J8: Orem | K8: 75 | L8: 70
A9: PSCART | E9: 0 | F9: 36 | G9: 0 | H9: 0 | I9: 0 | J9: SF | K9: 75 | L9: 70 | M9: SF
A10: RSCART | E10: 0 | F10: 36 | G10: 0 | H10: 0 | I10: 0 | J10: SF | K10: 75 | L10: 70 | M10: SF
A11: CRTCOMFRTPSHBLK | E11: 0 | F11: 257 | G11: 3 | H11: 108 | I11: 38 | J11: Orem | K11: 75 | L11: 70 | M11: include pallet?
A12: CRTCOMFRTSTKBLK | E12: 0 | F12: 257 | G12: 3 | H12: 108 | I12: 38 | J12: Orem | K12: 75 | L12: 70 | M12: include pallet?
A13: CRTTREE1 | B13: 35.5 | C13: 83 | D13: 18 | E13: =(B13/12)*(C13/12)*(D13/12) -> 30.69270833 | F13: 131 | G13: 6 | H13: 61 | I13: 61 | J13: Orem | K13: 75 | L13: 70
A14: CRTTREE2 | B14: 38 | C14: 76.5 | D14: 9 | E14: =(B14/12)*(C14/12)*(D14/12) -> 15.140625 | F14: 93 | G14: 6 | H14: 74 | I14: 38 | J14: Orem | K14: 75 | L14: 70
A15: CRTCHSSSK | B15: 43 | C15: 89 | D15: 12.5 | E15: 27.68373843 | F15: 273 | G15: 5 | H15: 98 | I15: 38 | J15: Orem | K15: 75 | L15: 70
A16: Swiftset Flat | B16: 30.5 | C16: 74.5 | D16: 8 | E16: 10.51967593 | F16: 94 | G16: 4 | H16: 74 | I16: 38 | J16: Orem | K16: 75 | L16: 70
A17: CRTCHSSFLUSBLK2 | E17: 0 | F17: 54 | G17: 4 | H17: 96 | I17: 36 | J17: Orem | K17: 75 | L17: 70
A18: MRCART | E18: 0 | F18: 24 | G18: 30 | H18: 48 | I18: 48 | J18: SF | K18: 75 | L18: 70 | M18: SF
A19: 2 Wheel | E19: 0 | F19: 26 | G19: 0 | H19: 0 | I19: 0 | J19: Orem | K19: 75 | L19: 70
A20: CRTHDTBLK2 | B20: 23.5 | C20: 25.5 | D20: 5 | E20: 1.733940972 | F20: 25 | G20: 6 | H20: 48 | I20: 48 | J20: Orem | K20: 75 | L20: 70

Sheet Restaurant Detailed (hidden)
A1: Restaurant Chairs Dimensions & Weight
A2: Product Name | B2: Weight | C2: Max Per Pallet | D2: Width | E2: Length | F2: Location | G2: Pallet Weight | H2: Class
A3: Madrid (Vinyl) | B3: 16 | C3: 12 | D3: 48 | E3: 40 | F3: SF | G3: 50 | H3: 150
A4: Madrid (Wood) | B4: 19 | C4: 12 | D4: 48 | E4: 40 | F4: SF | G4: 50 | H4: 150
A5: Madrid (Bar Vinyl) | B5: 22 | C5: 9 | D5: 48 | E5: 40 | F5: SF | G5: 50 | H5: 150
A6: Madrid (Bar Wood) | B6: 25 | C6: 9 | D6: 48 | E6: 40 | F6: SF | G6: 50 | H6: 150
A7: Cambridge | B7: 21 | C7: 12 | D7: 48 | E7: 40 | F7: SF | G7: 50 | H7: 150
A8: Cambridge (Bar) | B8: 23 | C8: 9 | D8: 48 | E8: 40 | F8: SF | G8: 50 | H8: 150
A9: Oslo | B9: 15 | C9: 18 | D9: 48 | E9: 40 | F9: SF | G9: 50 | H9: 150
A10: Sofia (Vinyl) | B10: 18 | C10: 18 | D10: 48 | E10: 40 | F10: SF | G10: 50 | H10: 150
A11: Sofia (Wood) | B11: 20 | C11: 18 | D11: 48 | E11: 40 | F11: SF | G11: 50 | H11: 150
A12: Milan | B12: 16 | C12: 18 | D12: 48 | E12: 40 | F12: SF | G12: 50 | H12: 150
A13: Seville | B13: 18 | C13: 9 | D13: 48 | E13: 40 | F13: SF | G13: 50 | H13: 150
A14: Seville (Bar) | B14: 20 | C14: 9 | D14: 48 | E14: 40 | F14: SF | G14: 50 | H14: 150
A15: Bordeaux (Vinyl) | B15: 17 | C15: 18 | D15: 48 | E15: 40 | F15: SF | G15: 50 | H15: 150
A16: Bordeaux (Wood) | B16: 18 | C16: 18 | D16: 48 | E16: 40 | F16: SF | G16: 50 | H16: 150
A17: Bordeaux (Vinyl Bar) | B17: 21 | C17: 9 | D17: 48 | E17: 40 | F17: SF | G17: 50 | H17: 150
A18: BXW1 | B18: 17 | C18: 12 | D18: 48 | E18: 40 | F18: SF | G18: 50 | H18: 150
A19: BXWBKSCH | B19: 17 | C19: 12 | D19: 48 | E19: 40 | F19: SF | G19: 50 | H19: 150
A20: Barcelona (Vinyl) | B20: 17 | C20: 12 | D20: 48 | E20: 40 | F20: SF | G20: 50 | H20: 150
A21: Barcelona (Bar Vinyl) | B21: 23 | C21: 8 | D21: 48 | E21: 40 | F21: SF | G21: 50 | H21: 150
A22: BCM2BV (Vinyl) | B22: 19 | C22: 12 | D22: 48 | E22: 40 | F22: SF | G22: 50 | H22: 150
A23: Lisbon | B23: 18 | C23: 12 | D23: 48 | E23: 40 | F23: SF | G23: 50 | H23: 150
A24: Zurich | B24: 16 | C24: 12 | D24: 48 | E24: 40 | F24: SF | G24: 50 | H24: 150

Sheet Zip Database (hidden)
A1: Zipcode | B1: City | C1: State
A2: 7675 | B2: WESTWOOD | C2: NJ
A3: 7677 | B3: WOODCLIFF LAKE | C3: NJ
A4: 7885 | B4: WHARTON | C4: NJ
A5: 7981 | B5: WHIPPANY | C5: NJ
A6: 7999 | B6: WHIPPANY | C6: NJ
A7: 8888 | B7: WHITEHOUSE | C7: NJ
A8: 8889 | B8: WHITEHOUSE STATION | C8: NJ
A9: 7095 | B9: WOODBRIDGE | C9: NJ
A10: 7481 | B10: WYCKOFF | C10: NJ
A11: 10451 | B11: BRONX | C11: NY
A12: 10452 | B12: BRONX | C12: NY
A13: 10453 | B13: BRONX | C13: NY
A14: 10454 | B14: BRONX | C14: NY
A15: 10455 | B15: BRONX | C15: NY
A16: 10456 | B16: BRONX | C16: NY
A17: 10457 | B17: BRONX | C17: NY
A18: 10458 | B18: BRONX | C18: NY
A19: 10459 | B19: BRONX | C19: NY
A20: 10460 | B20: BRONX | C20: NY
A21: 10461 | B21: BRONX | C21: NY
A22: 10462 | B22: BRONX | C22: NY
A23: 10463 | B23: BRONX | C23: NY
A24: 10464 | B24: BRONX | C24: NY
A25: 10465 | B25: BRONX | C25: NY
A26: 10466 | B26: BRONX | C26: NY
A27: 10467 | B27: BRONX | C27: NY
A28: 10468 | B28: BRONX | C28: NY
A29: 10469 | B29: BRONX | C29: NY
A30: 10470 | B30: BRONX | C30: NY
A31: 10471 | B31: BRONX | C31: NY
A32: 10472 | B32: BRONX | C32: NY
A33: 10473 | B33: BRONX | C33: NY
A34: 10474 | B34: BRONX | C34: NY
A35: 10475 | B35: BRONX | C35: NY
A36: 10499 | B36: BRONX | C36: NY
A37: 10001 | B37: NEW YORK | C37: NY
A38: 10002 | B38: NEW YORK | C38: NY
A39: 10003 | B39: NEW YORK | C39: NY
A40: 10004 | B40: NEW YORK | C40: NY
A41: 10005 | B41: NEW YORK | C41: NY
A42: 10006 | B42: NEW YORK | C42: NY
A43: 10007 | B43: NEW YORK | C43: NY
A44: 10008 | B44: NEW YORK | C44: NY
A45: 10009 | B45: NEW YORK | C45: NY
A46: 10010 | B46: NEW YORK | C46: NY
A47: 10011 | B47: NEW YORK | C47: NY
A48: 10012 | B48: NEW YORK | C48: NY
A49: 10013 | B49: NEW YORK | C49: NY
A50: 10014 | B50: NEW YORK | C50: NY
A51: 10016 | B51: NEW YORK | C51: NY
A52: 10017 | B52: NEW YORK | C52: NY
A53: 10018 | B53: NEW YORK | C53: NY
A54: 10019 | B54: NEW YORK | C54: NY
A55: 10020 | B55: NEW YORK | C55: NY
A56: 10021 | B56: NEW YORK | C56: NY
A57: 10022 | B57: NEW YORK | C57: NY
A58: 10023 | B58: NEW YORK | C58: NY
A59: 10024 | B59: NEW YORK | C59: NY
A60: 10025 | B60: NEW YORK | C60: NY
A61: 10026 | B61: NEW YORK | C61: NY
A62: 10027 | B62: NEW YORK | C62: NY
A63: 10028 | B63: NEW YORK | C63: NY
A64: 10029 | B64: NEW YORK | C64: NY
A65: 10030 | B65: NEW YORK | C65: NY
A66: 10031 | B66: NEW YORK | C66: NY
A67: 10032 | B67: NEW YORK | C67: NY
A68: 10033 | B68: NEW YORK | C68: NY
A69: 10034 | B69: NEW YORK | C69: NY
A70: 613 | B70: ARECIBO | C70: PR
A71: 614 | B71: ARECIBO | C71: PR
A72: 714 | B72: ARROYO | C72: PR
A73: 616 | B73: BAJADERO | C73: PR
A74: 617 | B74: BARCELONETA | C74: PR
A75: 794 | B75: BARRANQUITAS | C75: PR
A76: 622 | B76: BOQUERON | C76: PR
A77: 623 | B77: CABO ROJO | C77: PR
A78: 627 | B78: CAMUY | C78: PR
A79: 729 | B79: CANOVANAS | C79: PR
A80: 979 | B80: CAROLINA | C80: PR
A81: 981 | B81: CAROLINA | C81: PR
A82: 982 | B82: CAROLINA | C82: PR
A83: 983 | B83: CAROLINA | C83: PR
A84: 984 | B84: CAROLINA | C84: PR
A85: 985 | B85: CAROLINA | C85: PR
A86: 986 | B86: CAROLINA | C86: PR
A87: 987 | B87: CAROLINA | C87: PR
A88: 988 | B88: CAROLINA | C88: PR
A89: 736 | B89: CAYEY | C89: PR
A90: 739 | B90: CIDRA | C90: PR
A91: 769 | B91: COAMO | C91: PR
A92: 782 | B92: COMERIO | C92: PR
A93: 783 | B93: COROZAL | C93: PR
A94: 9848 | B94: APO | C94: AE
A95: 10200 | B95: NEW YORK | C95: NY
A96: 9323 | B96: APO | C96: AE
A97: 659 | B97: HATILLO | C97: PR
A98: 660 | B98: HORMIGUEROS | C98: PR
A99: 791 | B99: HUMACAO | C99: PR
A100: 792 | B100: HUMACAO | C100: PR
A101: 662 | B101: ISABELA | C101: PR
A102: 664 | B102: JAYUYA | C102: PR
A103: 795 | B103: JUANA DIAZ | C103: PR
A104: 777 | B104: JUNCOS | C104: PR
A105: 728 | B105: PONCE | C105: PR
A106: 725 | B106: CAGUAS | C106: PR
A107: 726 | B107: CAGUAS | C107: PR
A108: 727 | B108: CAGUAS | C108: PR
A109: 737 | B109: CAYEY | C109: PR
A110: 735 | B110: CEIBA | C110: PR
A111: 742 | B111: ROOSEVELT ROADS | C111: PR
A112: 638 | B112: CIALES | C112: PR
A113: 780 | B113: COTO LAUREL | C113: PR
A114: 775 | B114: CULEBRA | C114: PR
A115: 646 | B115: DORADO | C115: PR
A116: 647 | B116: ENSENADA | C116: PR
A117: 738 | B117: FAJARDO | C117: PR
A118: 650 | B118: FLORIDA | C118: PR
A119: 652 | B119: GARROCHALES | C119: PR
A120: 653 | B120: GUANICA | C120: PR
A121: 784 | B121: GUAYAMA | C121: PR
A122: 785 | B122: GUAYAMA | C122: PR
A123: 656 | B123: GUAYANILLA | C123: PR
A124: 965 | B124: GUAYNABO | C124: PR
A125: 966 | B125: GUAYNABO | C125: PR
A126: 968 | B126: GUAYNABO | C126: PR
A127: 969 | B127: GUAYNABO | C127: PR
A128: 970 | B128: GUAYNABO | C128: PR
A129: 971 | B129: GUAYNABO | C129: PR
A130: 778 | B130: GURABO | C130: PR
A131: 667 | B131: LAJAS | C131: PR
A132: 786 | B132: LA PLATA | C132: PR
A133: 669 | B133: LARES | C133: PR
A134: 670 | B134: LAS MARIAS | C134: PR
A135: 771 | B135: LAS PIEDRAS | C135: PR
A136: 931 | B136: SAN JUAN | C136: PR
A137: 933 | B137: SAN JUAN | C137: PR
A138: 934 | B138: FORT BUCHANAN | C138: PR
A139: 935 | B139: SAN JUAN | C139: PR
A140: 936 | B140: SAN JUAN | C140: PR
A141: 772 | B141: LOIZA | C141: PR
A142: 773 | B142: LUQUILLO | C142: PR
A143: 674 | B143: MANATI | C143: PR
A144: 606 | B144: MARICAO | C144: PR
A145: 707 | B145: MAUNABO | C145: PR
A146: 636 | B146: ROSARIO | C146: PR
A147: 680 | B147: MAYAGUEZ | C147: PR
A148: 681 | B148: MAYAGUEZ | C148: PR
A149: 682 | B149: MAYAGUEZ | C149: PR
A150: 715 | B150: MERCEDITA | C150: PR
A151: 676 | B151: MOCA | C151: PR
A152: 687 | B152: MOROVIS | C152: PR
A153: 718 | B153: NAGUABO | C153: PR
A154: 719 | B154: NARANJITO | C154: PR
A155: 720 | B155: OROCOVIS | C155: PR
A156: 723 | B156: PATILLAS | C156: PR
A157: 624 | B157: PENUELAS | C157: PR
A158: 716 | B158: PONCE | C158: PR
A159: 717 | B159: PONCE | C159: PR
A160: 730 | B160: PONCE | C160: PR
A161: 731 | B161: PONCE | C161: PR
A162: 732 | B162: PONCE | C162: PR
A163: 733 | B163: PONCE | C163: PR
A164: 734 | B164: PONCE | C164: PR
A165: 740 | B165: PUERTO REAL | C165: PR
A166: 741 | B166: PUNTA SANTIAGO | C166: PR
A167: 678 | B167: QUEBRADILLAS | C167: PR
A168: 677 | B168: RINCON | C168: PR
A169: 744 | B169: RIO BLANCO | C169: PR
A170: 721 | B170: PALMER | C170: PR
A171: 745 | B171: RIO GRANDE | C171: PR
A172: 637 | B172: SABANA GRANDE | C172: PR
A173: 688 | B173: SABANA HOYOS | C173: PR
A174: 952 | B174: SABANA SECA | C174: PR
A175: 751 | B175: SALINAS | C175: PR
A176: 690 | B176: SAN ANTONIO | C176: PR
A177: 683 | B177: SAN GERMAN | C177: PR
A178: 901 | B178: SAN JUAN | C178: PR
A179: 902 | B179: SAN JUAN | C179: PR
A180: 906 | B180: SAN JUAN | C180: PR
A181: 907 | B181: SAN JUAN | C181: PR
A182: 908 | B182: SAN JUAN | C182: PR
A183: 909 | B183: SAN JUAN | C183: PR
A184: 910 | B184: SAN JUAN | C184: PR
A185: 911 | B185: SAN JUAN | C185: PR
A186: 912 | B186: SAN JUAN | C186: PR
A187: 913 | B187: SAN JUAN | C187: PR
A188: 914 | B188: SAN JUAN | C188: PR
A189: 915 | B189: SAN JUAN | C189: PR
A190: 916 | B190: SAN JUAN | C190: PR
A191: 917 | B191: SAN JUAN | C191: PR
A192: 918 | B192: SAN JUAN | C192: PR
A193: 919 | B193: SAN JUAN | C193: PR
A194: 920 | B194: SAN JUAN | C194: PR
A195: 921 | B195: SAN JUAN | C195: PR
A196: 922 | B196: SAN JUAN | C196: PR
A197: 923 | B197: SAN JUAN | C197: PR
A198: 924 | B198: SAN JUAN | C198: PR
A199: 925 | B199: SAN JUAN | C199: PR
A200: 926 | B200: SAN JUAN | C200: PR
... 4300 more rows

Sheet States (hidden)
A1: State | B1: Carrier
A2: AK | B2: YRC
A3: AL | B3: YRC
A4: AR | B4: YRC
A5: AZ | B5: Reddaway
A6: CA | B6: Reddaway
A7: CO | B7: Saia
A8: CT | B8: XPO
A9: DE | B9: XPO
A10: FL | B10: YRC
A11: GA | B11: YRC
A12: HI | B12: YRC
A13: IA | B13: YRC
A14: ID | B14: Reddaway
A15: IL | B15: YRC
A16: IN | B16: YRC
A17: KS | B17: Saia
A18: KY | B18: YRC
A19: LA | B19: XPO
A20: MA | B20: YRC
A21: MD | B21: YRC
A22: ME | B22: YRC
A23: MI | B23: YRC
A24: MN | B24: XPO
A25: MO | B25: Saia
A26: MS | B26: YRC
A27: MT | B27: Reddaway
A28: NC | B28: YRC
A29: ND | B29: XPO
A30: NE | B30: Saia
A31: NH | B31: YRC
A32: NJ | B32: YRC
A33: NM | B33: XPO
A34: NV | B34: Saia
A35: NY | B35: XPO
A36: OH | B36: YRC
A37: OK | B37: XPO
A38: OR | B38: Reddaway
A39: PA | B39: YRC
A40: RI | B40: XPO
A41: SC | B41: YRC
A42: SD | B42: XPO
A43: TN | B43: YRC
A44: TX | B44: XPO
A45: UT | B45: SST
A46: VA | B46: XPO
A47: VT | B47: YRC
A48: WA | B48: Saia
A49: WI | B49: YRC
A50: WV | B50: YRC
A51: WY | B51: XPO
